Service area,Service sub division,TVBC Service,Expense type,Detailed expense type,TVBC account code,Date Paid,Transaction Reference, Nett Value ,Supplier Name
Central Services to the Public,Elections,Legal & Democratic,Premises related Expenditure,Rents,Premises Hire,16/05/2024,513930,500,Pilgrims Way & River Way Comm.Assoc.
Planning & Development,Community Development,Community and Leisure ,Supplies & Services,Grants & Subscriptions,Grants,16/05/2024,513993,500,Charlton Village Community Association
Central Services to the Public,Management & Support Services,Finance,Supplies & Services,Miscellaneous Expenses,Vehicle insurance claims,30/05/2024,515056,500,B P Rolls Ltd
Planning & Development,Economic Development,Planning Policy & Economic Development ,Supplies & Services,Services,Training Courses,23/05/2024,514254,500,Humphrey & Crockett Ltd
Central Services to the Public,Elections,Legal & Democratic,Premises related Expenditure,Rents,Premises Hire,16/05/2024,513912,500,Mountbatten School Services Ltd
Central Services to the Public,Elections,Legal & Democratic,Premises related Expenditure,Rents,Premises Hire,16/05/2024,513933,500,Thruxton War Memorial Hall
Central Services to the Public,Management & Support Services,Premises & Asset Management,Supplies & Services,"Equipment, Furniture & Materials",Purchase Materials (Job Cost),23/05/2024,514265,417.31,Cjs Portsmouth Ltd
External Trading Accounts,Business Parks,Premises & Asset Management,Premises related Expenditure,Repairs Alterations & Maintenance of Buildings,Planned Maintenance - Non Est,09/05/2024,513533,418.25,Pattco
"Highways, Roads & Transport",Public Transport,Plan Pol & Transport,Third Party Payments,Transport Operators in Respect of Concessionary Fares,Voluntary Orgs Reimbursement,22/05/2024,514570,507.57,Awbridge Neighbourcare
Housing Services,Homelessness,Housing and Environmental Health ,Supplies & Services,"Equipment, Furniture & Materials",Purchase Furniture,02/05/2024,508868,451.67,Scratch
External Trading Accounts,Business Parks,Premises & Asset Management,Premises related Expenditure,Repairs Alterations & Maintenance of Buildings,Building Maint - Non Estates,09/05/2024,513383,430,Easy Epc
Housing Services,Homelessness,Housing and Environmental Health ,Supplies & Services,Services,Training Courses,02/05/2024,509583,430,Shelter Training
Cultural & Related,Open Spaces,Environmental,Supplies & Services,"Equipment, Furniture & Materials",Purchase Equip + Materials,02/05/2024,511272,430.37,Fleet (Line Markers) Ltd
Central Services to the Public,Elections,Legal & Democratic,Supplies & Services,"Printing, Stationery & General Office Expenses",Postage Costs,16/05/2024,513762,518.62,Royal Mail Group Ltd
External Trading Accounts,Business Parks,Premises & Asset Management,Premises related Expenditure,Repairs Alterations & Maintenance of Buildings,Estates premises costs - AMP,02/05/2024,513116,520,Bressummer A.R.K Limited
Central Services to the Public,Elections,Legal & Democratic,Premises related Expenditure,Rents,Premises Hire,16/05/2024,513893,522.5,Chilworth Parish Hall Management Committee
Environmental & Regulatory,Waste management,Environmental,Transport Related Expenditure,Direct Transport Costs,Repair Materials,09/05/2024,513095,436.58,Dennis Eagle Ltd
Environmental & Regulatory,Waste management,Environmental,Transport Related Expenditure,Direct Transport Costs,Repair Materials,09/05/2024,513397,440.24,Sparks Commercial Services Ltd
Central Services to the Public,Management & Support Services,Premises & Asset Management,Third Party Payments,Other Establishments,Private Contractors,30/05/2024,515017,441.32,Corrigenda Ltd
Cultural & Related,Recreation & Sport,Community and Leisure ,Premises related Expenditure,Repairs Alterations & Maintenance of Buildings,Planned Maintenance - Non Est,02/05/2024,512787,442.1,Cp Fire Consultants Ltd
Cultural & Related,Culture & Heritage,Community and Leisure ,Supplies & Services,Miscellaneous Expenses,Booking Of Acts,23/05/2024,514617,445.65,Coram Shakespeare Schools Foundation
Cultural & Related,Culture & Heritage,Premises & Asset Management,Premises related Expenditure,Repairs Alterations & Maintenance of Buildings,Planned Maintenance - Non Est,16/05/2024,513736,450,Ul Vs Ltd
Environmental & Regulatory,Waste management,Environmental,Transport Related Expenditure,Direct Transport Costs,External Garages,16/05/2024,513386,450,Titchfield Media Limited
Cultural & Related,Culture & Heritage,Premises & Asset Management,Premises related Expenditure,Repairs Alterations & Maintenance of Buildings,Planned Maintenance - Non Est,09/05/2024,513108,459.8,Corrigenda Ltd
Planning & Development,Development Control,Planning & Building,Transport Related Expenditure,Contract Hire and Operating Leases,Officer lease cars,23/05/2024,513786,552.29,Arval Uk Ltd
Central Services to the Public,Elections,Legal & Democratic,Premises related Expenditure,Rents,Premises Hire,23/05/2024,513889,553.75,Places For People Leisure Ltd
Central Services to the Public,Management & Support Services,Legal & Democratic,Employees,Indirect Employee Expenses,Agency Staff - Waged Posts,23/05/2024,513956,465,Sellick Partnership Ltd
Environmental & Regulatory,Waste management,Environmental,Transport Related Expenditure,Direct Transport Costs,Repair Materials,09/05/2024,512839,468.52,Dennis Eagle Ltd
Central Services to the Public,Elections,Legal & Democratic,Supplies & Services,"Printing, Stationery & General Office Expenses",Postage Costs,23/05/2024,514381,473.4,Financial Data Management Plc
External Trading Accounts,Business Parks,Premises & Asset Management,Premises related Expenditure,Energy Costs,Electricity,09/05/2024,513128,475.9,Npower
Environmental & Regulatory,Waste management,Environmental,Transport Related Expenditure,Direct Transport Costs,Repair Materials,02/05/2024,512805,476.08,Dennis Eagle Ltd
Central Services to the Public,Management & Support Services,Finance,Supplies & Services,"Printing, Stationery & General Office Expenses",Postage Costs,09/05/2024,512997,479.82,Whistl
Central Services to the Public,Management & Support Services,Environmental,Supplies & Services,"Printing, Stationery & General Office Expenses",Stationery,23/05/2024,514276,482,Bulpitt Print Ltd
Central Services to the Public,Elections,Legal & Democratic,Supplies & Services,"Printing, Stationery & General Office Expenses",Postage Costs,23/05/2024,514382,483.6,Financial Data Management Plc
Environmental & Regulatory,Waste management,Environmental,Employees,Indirect Employee Expenses,Agency Staff - Waged Posts,09/05/2024,513098,484.39,24-7 Staffing
Environmental & Regulatory,Street Cleansing (not chargeable to Highways),Environmental,Transport Related Expenditure,Direct Transport Costs,Repair Materials,30/05/2024,514591,490,Ppk Services Ltd
Environmental & Regulatory,Waste management,Environmental,Employees,Indirect Employee Expenses,Agency Staff - Waged Posts,23/05/2024,513850,492.6,24-7 Staffing
External Trading Accounts,Business Parks,Premises & Asset Management,Premises related Expenditure,Energy Costs,Electricity,30/05/2024,514879,493.79,Npower
Cultural & Related,Open Spaces,Environmental,Supplies & Services,Communications & Computing,Mobile Telephone Charges,30/05/2024,513474,300.34,O2 Uk Ltd
Environmental & Regulatory,Waste & Recycling Management,Environmental,Supplies & Services,Communications & Computing,Mobile Telephone Charges,30/05/2024,513474,0,O2 Uk Ltd
Environmental & Regulatory,Street Cleansing (not chargeable to Highways),Environmental,Supplies & Services,Communications & Computing,Mobile Telephone Charges,30/05/2024,513474,190.8,O2 Uk Ltd
Environmental & Regulatory,Waste management,Environmental,Supplies & Services,Communications & Computing,Mobile Telephone Charges,30/05/2024,513474,6.78,O2 Uk Ltd
Planning & Development,Economic Development,Planning Policy & Economic Development ,Supplies & Services,Grants & Subscriptions,Grants,30/05/2024,515081,600,Coco Cosmetits Ltd
Central Services,Corporate & Democratic Core,Corporate & Democratic,Supplies & Services,"Equipment, Furniture & Materials",Purchase Equip + Materials,30/05/2024,514912,500,Woolley & Wallis Salisbury Salerooms Ltd
Central Services to the Public,Elections,Legal & Democratic,Premises related Expenditure,Rents,Premises Hire,16/05/2024,513905,600,Romsey Town Council
Central Services to the Public,Management & Support Services,Premises & Asset Management,Premises related Expenditure,Repairs Alterations & Maintenance of Buildings,Estates premises costs - AMP,16/05/2024,513764,600,Personal Data - Data Protection Act 1998
Cultural & Related,Open Spaces,Environmental,Transport Related Expenditure,Direct Transport Costs,Repair Materials,02/05/2024,512804,500.2,Hunt Forest Group Ltd
Cultural & Related,Recreation & Sport,Community and Leisure ,Premises related Expenditure,Energy Costs,Electricity,23/05/2024,512922,505.52,British Gas Business 
Cultural & Related,Culture & Heritage,Premises & Asset Management,Premises related Expenditure,Energy Costs,Electricity,30/05/2024,513798,588.2,Edf Energy
Central Services,Corporate & Democratic Core,Corporate & Democratic,Supplies & Services,Communications & Computing,Computer Hardware,09/05/2024,513078,510,Exampleit Ltd
Environmental & Regulatory,Regulatory Services,Premises & Asset Management,Premises related Expenditure,Water Services,Water And Sewerage Charges,02/05/2024,513035,613.86,Castle Water Limited
External Trading Accounts,Business Parks,Premises & Asset Management,Supplies & Services,"Equipment, Furniture & Materials",Purchase Furniture,02/05/2024,512981,524.52,Mint Signs And Graphics Ltd
Environmental & Regulatory,Waste management,Environmental,Transport Related Expenditure,Direct Transport Costs,Repair Materials,09/05/2024,513453,524.79,Wasteparts Uk Ltd
External Trading Accounts,Business Parks,Premises & Asset Management,Supplies & Services,Services,Professional Fees,02/05/2024,512780,525,Jcp Engineers
"Highways, Roads & Transport",Parking Services,Plan Pol & Transport,Supplies & Services,Services,Professional Fees,16/05/2024,513931,525,Jcp Engineers
Central Services to the Public,Management & Support Services,Premises & Asset Management,Third Party Payments,Other Establishments,Private Contractors,09/05/2024,513557,630,Personal Data - Data Protection Act 1998
Cultural & Related,Open Spaces,Community and Leisure ,Premises related Expenditure,Grounds Maintenance Costs,Non Contract Tree Works,09/05/2024,510353,535.45,Gristwood & Toms Ltd
Housing Services,Homelessness,Housing and Environmental Health ,Supplies & Services,Grants & Subscriptions,Grants,09/05/2024,513574,643.92,Aster Group
Central Services to the Public,Management & Support Services,Environmental,Supplies & Services,"Clothes, Uniforms & Laundry",Clothing + Uniforms,09/05/2024,512982,295.08,Smi Group
Central Services to the Public,Management & Support Services,Environmental,Supplies & Services,Miscellaneous Expenses,Health And Safety,09/05/2024,512982,242.6,Smi Group
Central Services to the Public,Elections,Legal & Democratic,Premises related Expenditure,Rents,Premises Hire,16/05/2024,513914,656,Picket Twenty Community Association
Planning & Development,Economic Development,Planning Policy & Economic Development ,Supplies & Services,Miscellaneous Expenses,Promotions / Special Events,23/05/2024,514247,550,Intergage Marketing Systems Ltd
Central Services to the Public,Management & Support Services,Premises & Asset Management,Supplies & Services,"Equipment, Furniture & Materials",Purchase Materials (Job Cost),30/05/2024,514933,550,Rexel
Environmental & Regulatory,Community Development,Community and Leisure ,Supplies & Services,Grants & Subscriptions,Subscriptions,02/05/2024,512510,550,Locality
Cultural & Related,Open Spaces,Environmental,Transport Related Expenditure,Direct Transport Costs,Repair Materials,30/05/2024,514386,137.5,Adams Morey Ltd
Environmental & Regulatory,Street Cleansing (not chargeable to Highways),Environmental,Transport Related Expenditure,Direct Transport Costs,Repair Materials,30/05/2024,514386,137.5,Adams Morey Ltd
Environmental & Regulatory,Waste management,Environmental,Transport Related Expenditure,Direct Transport Costs,Repair Materials,30/05/2024,514386,137.5,Adams Morey Ltd
Environmental & Regulatory,Waste management,Environmental,Transport Related Expenditure,Direct Transport Costs,Repair Materials,30/05/2024,514386,137.5,Adams Morey Ltd
Environmental & Regulatory,Waste & Recycling Management,Environmental,Transport Related Expenditure,Direct Transport Costs,Tyres,23/05/2024,513738,85.46,Tructyre Ats
Environmental & Regulatory,Waste management,Environmental,Transport Related Expenditure,Direct Transport Costs,Tyres,23/05/2024,513738,270.9,Tructyre Ats
Environmental & Regulatory,Waste management,Environmental,Transport Related Expenditure,Direct Transport Costs,Tyres,23/05/2024,513738,194.01,Tructyre Ats
Environmental & Regulatory,Waste management,Environmental,Transport Related Expenditure,Direct Transport Costs,Repair Materials,02/05/2024,512801,553.4,Dennis Eagle Ltd
Central Services to the Public,Management & Support Services,Premises & Asset Management,Third Party Payments,Other Establishments,Private Contractors,16/05/2024,513766,675,Personal Data - Data Protection Act 1998
Environmental & Regulatory,Waste management,Environmental,Employees,Indirect Employee Expenses,Agency Staff - Waged Posts,30/05/2024,514322,404.2,Aligra
Environmental & Regulatory,Waste management,Environmental,Employees,Indirect Employee Expenses,Agency Staff - Waged Posts,30/05/2024,514322,159.8,Aligra
Cultural & Related,Culture & Heritage,Community and Leisure ,Supplies & Services,Miscellaneous Expenses,Advertising,30/05/2024,513920,571.43,Global Media Group Services Ltd
Cultural & Related,Culture & Heritage,Community and Leisure ,Premises related Expenditure,Repairs Alterations & Maintenance of Buildings,Planned Maintenance - Non Est,02/05/2024,513110,571.52,Corrigenda Ltd
Central Services to the Public,Management & Support Services,Premises & Asset Management,Third Party Payments,Other Establishments,Private Contractors,23/05/2024,514352,690,Personal Data - Data Protection Act 1998
Central Services to the Public,Management & Support Services,Premises & Asset Management,Third Party Payments,Other Establishments,Private Contractors,30/05/2024,514888,575.4,Woodstock Plumbing & Heating Supp Ltd
Cultural & Related,Recreation & Sport,Community and Leisure ,Premises related Expenditure,Water Services,Water And Sewerage Charges,30/05/2024,514347,580,Aquam Water Services
External Trading Accounts,Business Parks,Premises & Asset Management,Premises related Expenditure,Repairs Alterations & Maintenance of Buildings,Planned Maintenance - Non Est,30/05/2024,515058,585.55,Pattco
Cultural & Related,Recreation & Sport,Community and Leisure ,Premises related Expenditure,Grounds Maintenance Costs,Gm - Additional Works,02/05/2024,512508,712.62,Mark Harrod Ltd
Central Services to the Public,Management & Support Services,IT,Supplies & Services,"Printing, Stationery & General Office Expenses",Stationery,02/05/2024,512888,598.95,Digital Id Ltd
Central Services to the Public,Management & Support Services,IT,Supplies & Services,"Equipment, Furniture & Materials",IT Supp and Serv AMP,02/05/2024,512754,600,Exampleit Ltd
Central Services to the Public,Elections,Legal & Democratic,Premises related Expenditure,Rents,Premises Hire,16/05/2024,513875,720,Chilbolton Village Hall
Cultural & Related,Culture & Heritage,Community and Leisure ,Premises related Expenditure,Cleaning and domestic supplies,Cleaning Materials-Purchases,23/05/2024,514370,604.8,Phs Group Plc
Cultural & Related,Culture & Heritage,Premises & Asset Management,Premises related Expenditure,Repairs Alterations & Maintenance of Buildings,Planned Maintenance - Non Est,23/05/2024,514218,1.22,Corrigenda Ltd
Cultural & Related,Culture & Heritage,Premises & Asset Management,Premises related Expenditure,Repairs Alterations & Maintenance of Buildings,Planned Maintenance - Non Est,23/05/2024,514219,1.22,Corrigenda Ltd
Central Services to the Public,Management & Support Services,Premises & Asset Management,Premises related Expenditure,Repairs Alterations & Maintenance of Buildings,Planned Maintenance - Non Est,23/05/2024,514218,20.4,Corrigenda Ltd
Central Services to the Public,Management & Support Services,Premises & Asset Management,Premises related Expenditure,Repairs Alterations & Maintenance of Buildings,Planned Maintenance - Non Est,23/05/2024,514219,20.4,Corrigenda Ltd
Central Services to the Public,Management & Support Services,Premises & Asset Management,Premises related Expenditure,Repairs Alterations & Maintenance of Buildings,Planned Maintenance - Non Est,23/05/2024,514218,2.39,Corrigenda Ltd
Central Services to the Public,Management & Support Services,Premises & Asset Management,Premises related Expenditure,Repairs Alterations & Maintenance of Buildings,Planned Maintenance - Non Est,23/05/2024,514219,2.39,Corrigenda Ltd
Central Services to the Public,Management & Support Services,Premises & Asset Management,Premises related Expenditure,Repairs Alterations & Maintenance of Buildings,Planned Maintenance - Non Est,23/05/2024,514218,4.78,Corrigenda Ltd
Central Services to the Public,Management & Support Services,Premises & Asset Management,Premises related Expenditure,Repairs Alterations & Maintenance of Buildings,Planned Maintenance - Non Est,23/05/2024,514219,4.78,Corrigenda Ltd
Cultural & Related,Recreation & Sport,Community and Leisure ,Premises related Expenditure,Repairs Alterations & Maintenance of Buildings,Planned Maintenance - Non Est,23/05/2024,514218,42.02,Corrigenda Ltd
Cultural & Related,Recreation & Sport,Community and Leisure ,Premises related Expenditure,Repairs Alterations & Maintenance of Buildings,Planned Maintenance - Non Est,23/05/2024,514219,42.02,Corrigenda Ltd
Cultural & Related,Recreation & Sport,Community and Leisure ,Premises related Expenditure,Repairs Alterations & Maintenance of Buildings,Planned Maintenance - Non Est,23/05/2024,514218,104.49,Corrigenda Ltd
Cultural & Related,Recreation & Sport,Community and Leisure ,Premises related Expenditure,Repairs Alterations & Maintenance of Buildings,Planned Maintenance - Non Est,23/05/2024,514219,104.49,Corrigenda Ltd
Cultural & Related,Recreation & Sport,Community and Leisure ,Premises related Expenditure,Repairs Alterations & Maintenance of Buildings,Planned Maintenance - Non Est,23/05/2024,514218,42.02,Corrigenda Ltd
Cultural & Related,Recreation & Sport,Community and Leisure ,Premises related Expenditure,Repairs Alterations & Maintenance of Buildings,Planned Maintenance - Non Est,23/05/2024,514219,42.02,Corrigenda Ltd
Cultural & Related,Recreation & Sport,Community and Leisure ,Premises related Expenditure,Repairs Alterations & Maintenance of Buildings,Planned Maintenance - Non Est,23/05/2024,514218,67.25,Corrigenda Ltd
Cultural & Related,Recreation & Sport,Community and Leisure ,Premises related Expenditure,Repairs Alterations & Maintenance of Buildings,Planned Maintenance - Non Est,23/05/2024,514219,67.25,Corrigenda Ltd
Cultural & Related,Recreation & Sport,Community and Leisure ,Premises related Expenditure,Repairs Alterations & Maintenance of Buildings,Planned Maintenance - Non Est,23/05/2024,514218,27.62,Corrigenda Ltd
Cultural & Related,Recreation & Sport,Community and Leisure ,Premises related Expenditure,Repairs Alterations & Maintenance of Buildings,Planned Maintenance - Non Est,23/05/2024,514219,27.62,Corrigenda Ltd
Cultural & Related,Recreation & Sport,Community and Leisure ,Premises related Expenditure,Repairs Alterations & Maintenance of Buildings,Planned Maintenance - Non Est,23/05/2024,514218,169.35,Corrigenda Ltd
Cultural & Related,Recreation & Sport,Community and Leisure ,Premises related Expenditure,Repairs Alterations & Maintenance of Buildings,Planned Maintenance - Non Est,23/05/2024,514219,169.35,Corrigenda Ltd
Cultural & Related,Recreation & Sport,Community and Leisure ,Premises related Expenditure,Repairs Alterations & Maintenance of Buildings,Planned Maintenance - Non Est,23/05/2024,514218,129.72,Corrigenda Ltd
Cultural & Related,Recreation & Sport,Community and Leisure ,Premises related Expenditure,Repairs Alterations & Maintenance of Buildings,Planned Maintenance - Non Est,23/05/2024,514219,129.72,Corrigenda Ltd
Cultural & Related,Culture & Heritage,Community and Leisure ,Premises related Expenditure,Repairs Alterations & Maintenance of Buildings,Planned Maintenance - Non Est,23/05/2024,514218,1.22,Corrigenda Ltd
Cultural & Related,Culture & Heritage,Community and Leisure ,Premises related Expenditure,Repairs Alterations & Maintenance of Buildings,Planned Maintenance - Non Est,23/05/2024,514219,1.22,Corrigenda Ltd
Central Services to the Public,Management & Support Services,Environmental,Transport Related Expenditure,Direct Transport Costs,Repair Materials,30/05/2024,514467,613.83,Wasteparts Uk Ltd
Central Services to the Public,Management & Support Services,Premises & Asset Management,Supplies & Services,Miscellaneous Expenses,Waste Collection,23/05/2024,514199,619,Bkp Waste & Recycling Ltd
Planning & Development,Economic Development,Planning Policy & Economic Development ,Supplies & Services,Grants & Subscriptions,Grants,02/05/2024,513008,750,Christopher & Harris Limited
Planning & Development,Economic Development,Planning Policy & Economic Development ,Supplies & Services,Grants & Subscriptions,Grants,30/05/2024,515074,750,Battle Dogs Ltd
Cultural & Related,Tourism,Planning Policy & Economic Development ,Supplies & Services,Services,Project Consultancy - Policy,23/05/2024,513853,750,Rm Communications
Environmental & Regulatory,Regulatory Services,Premises & Asset Management,Supplies & Services,Grants & Subscriptions,Contributions,02/05/2024,512879,750,Grilled Cheese Cafe Ltd
Environmental & Regulatory,Regulatory Services,Premises & Asset Management,Supplies & Services,Grants & Subscriptions,Contributions,16/05/2024,513549,750,The Bridge
Planning & Development,Community Development,Community and Leisure ,Supplies & Services,Grants & Subscriptions,Grants,30/05/2024,515068,750,Sherfield English Bowls Club
Central Services to the Public,Elections,Legal & Democratic,Premises related Expenditure,Rents,Premises Hire,16/05/2024,513932,750,Raods
Central Services to the Public,Management & Support Services,Environmental,Transport Related Expenditure,Direct Transport Costs,Repair Materials,30/05/2024,514625,627.91,Wasteparts Uk Ltd
Cultural & Related,Open Spaces,Environmental,Supplies & Services,"Equipment, Furniture & Materials",Purchase Equip + Materials,02/05/2024,512515,631.9,Cjs Portsmouth Ltd
Cultural & Related,Culture & Heritage,Community and Leisure ,Supplies & Services,Services,Tutors,01/05/2024,512362,760,Personal Data - Data Protection Act 1998
Environmental & Regulatory,Waste management,Environmental,Employees,Indirect Employee Expenses,Agency Staff - Waged Posts,09/05/2024,513093,636.04,Aligra
Cultural & Related,Recreation & Sport,Community and Leisure ,Premises related Expenditure,Repairs Alterations & Maintenance of Buildings,Planned Maintenance - Non Est,09/05/2024,511872,638.09,Corrigenda Ltd
Cultural & Related,Culture & Heritage,Premises & Asset Management,Premises related Expenditure,Repairs Alterations & Maintenance of Buildings,Planned Maintenance - Non Est,23/05/2024,514220,1.28,Corrigenda Ltd
Cultural & Related,Culture & Heritage,Premises & Asset Management,Premises related Expenditure,Repairs Alterations & Maintenance of Buildings,Planned Maintenance - Non Est,23/05/2024,514221,1.28,Corrigenda Ltd
Central Services to the Public,Management & Support Services,Premises & Asset Management,Premises related Expenditure,Repairs Alterations & Maintenance of Buildings,Planned Maintenance - Non Est,23/05/2024,514220,21.3,Corrigenda Ltd
Central Services to the Public,Management & Support Services,Premises & Asset Management,Premises related Expenditure,Repairs Alterations & Maintenance of Buildings,Planned Maintenance - Non Est,23/05/2024,514221,21.3,Corrigenda Ltd
Central Services to the Public,Management & Support Services,Premises & Asset Management,Premises related Expenditure,Repairs Alterations & Maintenance of Buildings,Planned Maintenance - Non Est,23/05/2024,514220,2.5,Corrigenda Ltd
Central Services to the Public,Management & Support Services,Premises & Asset Management,Premises related Expenditure,Repairs Alterations & Maintenance of Buildings,Planned Maintenance - Non Est,23/05/2024,514221,2.5,Corrigenda Ltd
Central Services to the Public,Management & Support Services,Premises & Asset Management,Premises related Expenditure,Repairs Alterations & Maintenance of Buildings,Planned Maintenance - Non Est,23/05/2024,514220,4.99,Corrigenda Ltd
Central Services to the Public,Management & Support Services,Premises & Asset Management,Premises related Expenditure,Repairs Alterations & Maintenance of Buildings,Planned Maintenance - Non Est,23/05/2024,514221,4.99,Corrigenda Ltd
Cultural & Related,Recreation & Sport,Community and Leisure ,Premises related Expenditure,Repairs Alterations & Maintenance of Buildings,Planned Maintenance - Non Est,23/05/2024,514220,43.91,Corrigenda Ltd
Cultural & Related,Recreation & Sport,Community and Leisure ,Premises related Expenditure,Repairs Alterations & Maintenance of Buildings,Planned Maintenance - Non Est,23/05/2024,514221,43.91,Corrigenda Ltd
Cultural & Related,Recreation & Sport,Community and Leisure ,Premises related Expenditure,Repairs Alterations & Maintenance of Buildings,Planned Maintenance - Non Est,23/05/2024,514220,109.19,Corrigenda Ltd
Cultural & Related,Recreation & Sport,Community and Leisure ,Premises related Expenditure,Repairs Alterations & Maintenance of Buildings,Planned Maintenance - Non Est,23/05/2024,514221,109.19,Corrigenda Ltd
Cultural & Related,Recreation & Sport,Community and Leisure ,Premises related Expenditure,Repairs Alterations & Maintenance of Buildings,Planned Maintenance - Non Est,23/05/2024,514220,43.91,Corrigenda Ltd
Cultural & Related,Recreation & Sport,Community and Leisure ,Premises related Expenditure,Repairs Alterations & Maintenance of Buildings,Planned Maintenance - Non Est,23/05/2024,514221,43.91,Corrigenda Ltd
Cultural & Related,Recreation & Sport,Community and Leisure ,Premises related Expenditure,Repairs Alterations & Maintenance of Buildings,Planned Maintenance - Non Est,23/05/2024,514220,70.28,Corrigenda Ltd
Cultural & Related,Recreation & Sport,Community and Leisure ,Premises related Expenditure,Repairs Alterations & Maintenance of Buildings,Planned Maintenance - Non Est,23/05/2024,514221,70.28,Corrigenda Ltd
Cultural & Related,Recreation & Sport,Community and Leisure ,Premises related Expenditure,Repairs Alterations & Maintenance of Buildings,Planned Maintenance - Non Est,23/05/2024,514220,28.87,Corrigenda Ltd
Cultural & Related,Recreation & Sport,Community and Leisure ,Premises related Expenditure,Repairs Alterations & Maintenance of Buildings,Planned Maintenance - Non Est,23/05/2024,514221,28.87,Corrigenda Ltd
Cultural & Related,Recreation & Sport,Community and Leisure ,Premises related Expenditure,Repairs Alterations & Maintenance of Buildings,Planned Maintenance - Non Est,23/05/2024,514220,176.97,Corrigenda Ltd
Cultural & Related,Recreation & Sport,Community and Leisure ,Premises related Expenditure,Repairs Alterations & Maintenance of Buildings,Planned Maintenance - Non Est,23/05/2024,514221,176.97,Corrigenda Ltd
Cultural & Related,Recreation & Sport,Community and Leisure ,Premises related Expenditure,Repairs Alterations & Maintenance of Buildings,Planned Maintenance - Non Est,23/05/2024,514220,135.56,Corrigenda Ltd
Cultural & Related,Recreation & Sport,Community and Leisure ,Premises related Expenditure,Repairs Alterations & Maintenance of Buildings,Planned Maintenance - Non Est,23/05/2024,514221,135.56,Corrigenda Ltd
Cultural & Related,Culture & Heritage,Community and Leisure ,Premises related Expenditure,Repairs Alterations & Maintenance of Buildings,Planned Maintenance - Non Est,23/05/2024,514220,1.28,Corrigenda Ltd
Cultural & Related,Culture & Heritage,Community and Leisure ,Premises related Expenditure,Repairs Alterations & Maintenance of Buildings,Planned Maintenance - Non Est,23/05/2024,514221,1.28,Corrigenda Ltd
Central Services to the Public,Management & Support Services,Premises & Asset Management,Third Party Payments,Other Establishments,Private Contractors,30/05/2024,514889,643,Doorgear Limited
"Highways, Roads & Transport",Parking Services,Plan Pol & Transport,Premises related Expenditure,Repairs Alterations & Maintenance of Buildings,Estates premises costs - AMP,02/05/2024,512835,650,Purbeck Civil Engineering Limited
Central Services to the Public,Elections,Legal & Democratic,Premises related Expenditure,Rents,Premises Hire,16/05/2024,513866,790.17,Purple Oak Support
Environmental & Regulatory,Regulatory Services,Premises & Asset Management,Premises related Expenditure,Water Services,Water And Sewerage Charges,02/05/2024,513042,798.87,Castle Water Limited
Environmental & Regulatory,Waste management,Environmental,Transport Related Expenditure,Direct Transport Costs,Repair Materials,23/05/2024,514294,678.47,Dennis Eagle Ltd
Environmental & Regulatory,Waste management,Environmental,Employees,Indirect Employee Expenses,Agency Staff - Waged Posts,23/05/2024,513837,683.85,Golden Orb Solutions
Cultural & Related,Culture & Heritage,Community and Leisure ,Supplies & Services,Communications & Computing,Computer Software,16/05/2024,513526,824.22,Ticketsolve Ltd
Central Services to the Public,Management & Support Services,Premises & Asset Management,Third Party Payments,Other Establishments,Private Contractors,02/05/2024,513002,825,Personal Data - Data Protection Act 1998
Central Services to the Public,Management & Support Services,Environmental,Transport Related Expenditure,Direct Transport Costs,Repair Materials,09/05/2024,512357,689.28,Wessex Truck And Trailer Supplies Limited
Central Services to the Public,Management & Support Services,Environmental,Transport Related Expenditure,Direct Transport Costs,Repair Materials,30/05/2024,514626,690,Wasteparts Uk Ltd
Central Services,Corporate & Democratic Core,Corporate & Democratic,Premises related Expenditure,Rents,Premises Hire,23/05/2024,514299,833.75,Andover Community Church
Environmental & Regulatory,Waste & Recycling Management,Environmental,Transport Related Expenditure,Direct Transport Costs,External Garages,30/05/2024,514628,697,Palfinger Uk
Central Services to the Public,Management & Support Services,Estates and Economic Development ,Third Party Payments,Private contractors,Main Contractor Costs,23/05/2024,514325,699.34,Hampshire Sash Window Service Ltd
Central Services to the Public,Management & Support Services,Legal & Democratic,Employees,Indirect Employee Expenses,Agency Staff - Waged Posts,30/05/2024,514598,705,Sellick Partnership Ltd
External Trading Accounts,Business Parks,Premises & Asset Management,Premises related Expenditure,Energy Costs,Electricity,23/05/2024,511306,710.33,Totalenergies Gas & Power Ltd
Central Services to the Public,Management & Support Services,Environmental,Supplies & Services,"Printing, Stationery & General Office Expenses",Photocopying Costs,09/05/2024,511706,711.68,Ricoh Uk Ltd
Cultural & Related,Culture & Heritage,Premises & Asset Management,Premises related Expenditure,Repairs Alterations & Maintenance of Buildings,Planned Maintenance - Non Est,02/05/2024,513118,714.4,Corrigenda Ltd
Central Services to the Public,Management & Support Services,Premises & Asset Management,Premises related Expenditure,Repairs Alterations & Maintenance of Buildings,Planned Maintenance - Non Est,02/05/2024,513111,714.4,Corrigenda Ltd
Environmental & Regulatory,Regulatory Services,Housing and Environmental Health ,Supplies & Services,Services,Project Consultancy - Policy,16/05/2024,512868,715.92,Als Laboratories (Uk) Limited
Environmental & Regulatory,Regulatory Services,Premises & Asset Management,Premises related Expenditure,Water Services,Water And Sewerage Charges,23/05/2024,513767,860.26,Castle Water Limited
Planning & Development,Economic Development,Premises & Asset Management,Premises related Expenditure,Repairs Alterations & Maintenance of Buildings,Planned Maintenance - Non Est,09/05/2024,513534,717,Pattco
Cultural & Related,Open Spaces,Environmental,Transport Related Expenditure,Direct Transport Costs,External Garages,30/05/2024,514312,487.5,A T H Machinery Ltd
Cultural & Related,Open Spaces,Environmental,Transport Related Expenditure,Direct Transport Costs,Repair Materials,30/05/2024,514312,231.21,A T H Machinery Ltd
Central Services to the Public,Management & Support Services,Environmental,Transport Related Expenditure,Direct Transport Costs,Repair Materials,02/05/2024,512360,719.73,Dennis Eagle Ltd
Cultural & Related,Culture & Heritage,Premises & Asset Management,Premises related Expenditure,Repairs Alterations & Maintenance of Buildings,Planned Maintenance - Non Est,23/05/2024,513998,722,A C Wallbridge & Co Ltd
Environmental & Regulatory,Regulatory Services,Housing and Environmental Health ,Supplies & Services,Grants and subscriptions,Capital Grants,02/05/2024,513177,881.1,Bjc Design (Southeast) Ltd
Environmental & Regulatory,Regulatory Services,Housing and Environmental Health ,Supplies & Services,Grants and subscriptions,Capital Grants,30/05/2024,515076,885.68,Bjc Design
Central Services to the Public,Management & Support Services,HR Services,Supplies & Services,Services,External Training Consultants,09/05/2024,513151,750,Dc Commercial Solicitors
Central Services to the Public,Management & Support Services,Premises & Asset Management,Third Party Payments,Other Establishments,Private Contractors,09/05/2024,513460,900,Personal Data - Data Protection Act 1998
Central Services to the Public,Management & Support Services,Premises & Asset Management,Third Party Payments,Other Establishments,Private Contractors,30/05/2024,515046,900,Personal Data - Data Protection Act 1998
Cultural & Related,Open Spaces,Environmental,Transport Related Expenditure,Direct Transport Costs,External Garages,09/05/2024,512831,487.5,A T H Machinery Ltd
Cultural & Related,Open Spaces,Environmental,Transport Related Expenditure,Direct Transport Costs,Repair Materials,09/05/2024,512831,265.36,A T H Machinery Ltd
Central Services to the Public,Management & Support Services,Legal & Democratic,Supplies & Services,"Printing, Stationery & General Office Expenses",Stationery,23/05/2024,513143,191.66,Lyreco Uk Ltd
Central Services to the Public,Elections,Legal & Democratic,Supplies & Services,"Printing, Stationery & General Office Expenses",Stationery,23/05/2024,513143,143.19,Lyreco Uk Ltd
Environmental & Regulatory,Regulatory Services,Legal & Democratic,Supplies & Services,"Printing, Stationery & General Office Expenses",Stationery,23/05/2024,513143,43.95,Lyreco Uk Ltd
Central Services,Corporate & Democratic Core,Corporate & Democratic,Supplies & Services,"Printing, Stationery & General Office Expenses",Stationery,23/05/2024,513143,387.69,Lyreco Uk Ltd
Central Services to the Public,Management & Support Services,Premises & Asset Management,Supplies & Services,Communications & Computing,Telephone Tracking System,09/05/2024,513065,48,Teletrac Navman (Uk) Ltd
Environmental & Regulatory,Regulatory Services,Housing and Environmental Health ,Supplies & Services,Communications & Computing,Telephone Tracking System,09/05/2024,513065,6,Teletrac Navman (Uk) Ltd
Environmental & Regulatory,Regulatory Services,Housing and Environmental Health ,Supplies & Services,Communications & Computing,Telephone Tracking System,09/05/2024,513065,12,Teletrac Navman (Uk) Ltd
Cultural & Related,Open Spaces,Community and Leisure ,Supplies & Services,Communications & Computing,Telephone Tracking System,09/05/2024,513065,6,Teletrac Navman (Uk) Ltd
Cultural & Related,Open Spaces,Community and Leisure ,Supplies & Services,Communications & Computing,Telephone Tracking System,09/05/2024,513065,6,Teletrac Navman (Uk) Ltd
"Highways, Roads & Transport",Parking Services,Plan Pol & Transport,Supplies & Services,Communications & Computing,Telephone Tracking System,09/05/2024,513065,12,Teletrac Navman (Uk) Ltd
Cultural & Related,Open Spaces,Environmental,Supplies & Services,Communications & Computing,Telephone Tracking System,09/05/2024,513065,299.99,Teletrac Navman (Uk) Ltd
Environmental & Regulatory,Waste & Recycling Management,Environmental,Supplies & Services,Communications & Computing,Telephone Tracking System,09/05/2024,513065,36,Teletrac Navman (Uk) Ltd
Environmental & Regulatory,Street Cleansing (not chargeable to Highways),Environmental,Supplies & Services,Communications & Computing,Telephone Tracking System,09/05/2024,513065,174.7,Teletrac Navman (Uk) Ltd
Environmental & Regulatory,Waste management,Environmental,Supplies & Services,Communications & Computing,Telephone Tracking System,09/05/2024,513065,136.6,Teletrac Navman (Uk) Ltd
Environmental & Regulatory,Waste management,Environmental,Supplies & Services,Communications & Computing,Telephone Tracking System,09/05/2024,513065,12,Teletrac Navman (Uk) Ltd
Central Services to the Public,Management & Support Services,Environmental,Supplies & Services,Communications & Computing,Telephone Tracking System,09/05/2024,513065,18,Teletrac Navman (Uk) Ltd
Central Services to the Public,Management & Support Services,Premises & Asset Management,Third Party Payments,Other Establishments,Private Contractors,23/05/2024,514351,925,Personal Data - Data Protection Act 1998
Central Services to the Public,Management & Support Services,Premises & Asset Management,Third Party Payments,Other Establishments,Private Contractors,30/05/2024,515045,925,Personal Data - Data Protection Act 1998
Central Services to the Public,Management & Support Services,Premises & Asset Management,Third Party Payments,Other Establishments,Private Contractors,09/05/2024,513461,930,C A M Carpentry
Central Services to the Public,Management & Support Services,Premises & Asset Management,Third Party Payments,Other Establishments,Private Contractors,16/05/2024,513765,930,C A M Carpentry
Environmental & Regulatory,Regulatory Services,Housing and Environmental Health ,Supplies & Services,Services,Project Consultancy - Policy,30/05/2024,514288,779.24,Als Laboratories (Uk) Limited
Cultural & Related,Recreation & Sport,Community and Leisure ,Premises related Expenditure,Grounds Maintenance Costs,Gm - Additional Works,23/05/2024,514471,782.3,Streetmaster (South Wales) Ltd
External Trading Accounts,Business Parks,Premises & Asset Management,Supplies & Services,Miscellaneous Expenses,Waste Collection,23/05/2024,514225,783.2,Basingstoke Skip Hire & Sthrn Waste Mgt Ltd
Cultural & Related,Open Spaces,Environmental,Supplies & Services,Miscellaneous Expenses,Waste Collection,16/05/2024,511854,785.48,Collard Enviromental Ltd
Environmental & Regulatory,Waste management,Environmental,Transport Related Expenditure,Direct Transport Costs,Repair Materials,09/05/2024,512833,485.23,Dennis Eagle Ltd
Central Services to the Public,Management & Support Services,Environmental,Transport Related Expenditure,Direct Transport Costs,Repair Materials,09/05/2024,512833,300.96,Dennis Eagle Ltd
Central Services to the Public,Local Tax Collection,Revenues,Supplies & Services,Services,Professional Fees,01/05/2024,511670,200,Airey Consultancy Services Ltd
Central Services to the Public,Local Tax Collection,Revenues,Supplies & Services,Services,Professional Fees,01/05/2024,511670,200,Airey Consultancy Services Ltd
Housing Services,Housing Benefits ,Revenues,Supplies & Services,Services,Professional Fees,01/05/2024,511670,400,Airey Consultancy Services Ltd
Central Services to the Public,Local Tax Collection,Revenues,Supplies & Services,Communications & Computing,Software Maintenance,02/05/2024,512795,801.97,Truecommerce (Coventry) Ltd
"Highways, Roads & Transport",Public Transport,Plan Pol & Transport,Third Party Payments,Transport Operators in Respect of Concessionary Fares,Voluntary Orgs Reimbursement,30/05/2024,515062,967.6,Romsey Good Neighbours
Cultural & Related,Culture & Heritage,Community and Leisure ,Supplies & Services,Miscellaneous Expenses,Security Services,23/05/2024,513069,810.55,Venture Security Management Ltd
Environmental & Regulatory,Waste management,Environmental,Employees,Indirect Employee Expenses,Agency Staff - Waged Posts,30/05/2024,513855,811.24,Aligra
External Trading Accounts,Economic Development,Premises & Asset Management,Premises related Expenditure,Repairs Alterations & Maintenance of Buildings,Planned Maintenance - Non Est,23/05/2024,511329,820.38,Corrigenda Ltd
Central Services to the Public,Elections,Legal & Democratic,Supplies & Services,"Printing, Stationery & General Office Expenses",Postage Costs,23/05/2024,513794,822.74,Financial Data Management Plc
Cultural & Related,Tourism,Planning Policy & Economic Development ,Premises related Expenditure,Repairs Alterations & Maintenance of Buildings,Building Maint - Estates,02/05/2024,512752,989.19,King Johns House And Tudor Cottage Trust Ltd
Housing Services,Homelessness,Housing and Environmental Health ,Supplies & Services,Services,Project Consultancy - Policy,23/05/2024,514283,990,Homeless Link
Planning & Development,Development Control,Planning & Building,Employees,Indirect Employee Expenses,Temporary Staff,16/05/2024,513375,825,Sarto Thomas Limited
Planning & Development,Development Control,Planning & Building,Employees,Indirect Employee Expenses,Temporary Staff,16/05/2024,513376,825,Sarto Thomas Limited
Planning & Development,Development Control,Planning & Building,Employees,Indirect Employee Expenses,Temporary Staff,23/05/2024,514316,825,Sarto Thomas Limited
Planning & Development,Community Development,Community and Leisure ,Supplies & Services,Grants & Subscriptions,Grants,09/05/2024,513571,1000,"St Francis Church, Valley Park"
Planning & Development,Community Development,Community and Leisure ,Supplies & Services,Grants & Subscriptions,Grants,16/05/2024,513990,1000,The Wallops Village Shop Association Ltd
Environmental & Regulatory,Community Development,Community and Leisure ,Supplies & Services,Grants & Subscriptions,Grants,30/05/2024,515072,1000,The Freedom Church
Environmental & Regulatory,Community Development,Community and Leisure ,Supplies & Services,Grants & Subscriptions,Grants,09/05/2024,513569,1000,Roman Way Primary School
Central Services to the Public,Management & Support Services,Premises & Asset Management,Premises related Expenditure,Repairs Alterations & Maintenance of Buildings,Estates premises costs - AMP,02/05/2024,513000,600,Personal Data - Data Protection Act 1998
Cultural & Related,Recreation & Sport,Community and Leisure ,Premises related Expenditure,Repairs Alterations & Maintenance of Buildings,Estates premises costs - AMP,02/05/2024,513000,400,Personal Data - Data Protection Act 1998
Cultural & Related,Recreation & Sport,Community and Leisure ,Premises related Expenditure,Repairs Alterations & Maintenance of Buildings,Estates premises costs - AMP,23/05/2024,514353,1000,Personal Data - Data Protection Act 1998
Planning & Development,Community Development,Community and Leisure ,Supplies & Services,Grants & Subscriptions,Grants,30/05/2024,515085,1000,Beggars Fair Organising Committee
Environmental & Regulatory,Waste management,Environmental,Employees,Indirect Employee Expenses,Agency Staff - Waged Posts,23/05/2024,513737,841.2,U Logistics Recruitment Limited
Environmental & Regulatory,Waste management,Environmental,Employees,Indirect Employee Expenses,Agency Staff - Waged Posts,30/05/2024,514632,846,Aligra
Environmental & Regulatory,Street Cleansing (not chargeable to Highways),Environmental,Employees,Indirect Employee Expenses,Agency Staff - Waged Posts,30/05/2024,514314,451.55,24-7 Staffing
Environmental & Regulatory,Waste management,Environmental,Employees,Indirect Employee Expenses,Agency Staff - Waged Posts,30/05/2024,514314,342.72,24-7 Staffing
Environmental & Regulatory,Waste management,Environmental,Employees,Indirect Employee Expenses,Agency Staff - Waged Posts,30/05/2024,514314,57.47,24-7 Staffing
Central Services to the Public,Elections,Legal & Democratic,Supplies & Services,"Printing, Stationery & General Office Expenses",Postage Costs,09/05/2024,513385,859.94,Financial Data Management Plc
Central Services to the Public,Management & Support Services,Legal & Democratic,Employees,Indirect Employee Expenses,Agency Staff - Waged Posts,23/05/2024,513758,870,Sellick Partnership Ltd
Cultural & Related,Culture & Heritage,Community and Leisure ,Supplies & Services,Miscellaneous Expenses,Booking Of Acts,23/05/2024,513862,1055,Personal Data - Data Protection Act 1998
Central Services to the Public,Management & Support Services,Finance,Supplies & Services,"Printing, Stationery & General Office Expenses",Postage Costs,23/05/2024,513947,885.07,Whistl
Central Services to the Public,Elections,Legal & Democratic,Supplies & Services,"Printing, Stationery & General Office Expenses",Postage Costs,02/05/2024,512829,909.64,Financial Data Management Plc
Central Services to the Public,Management & Support Services,Finance,Supplies & Services,"Printing, Stationery & General Office Expenses",Postage Costs,09/05/2024,513471,922.61,Whistl
Central Services to the Public,Management & Support Services,Finance,Supplies & Services,"Printing, Stationery & General Office Expenses",Postage Costs,02/05/2024,512761,947.08,Whistl
Central Services to the Public,Management & Support Services,Legal & Democratic,Employees,Indirect Employee Expenses,Agency Staff - Waged Posts,09/05/2024,512998,960,Sellick Partnership Ltd
Central Services to the Public,Management & Support Services,IT,Supplies & Services,Communications & Computing,Software Maintenance,23/05/2024,512932,971.85,Phoenix Software Ltd
Cultural & Related,Recreation & Sport,Community and Leisure ,Supplies & Services,"Equipment, Furniture & Materials",Purchase Equip + Materials,23/05/2024,513952,975,Waterside Blinds
Central Services to the Public,Management & Support Services,Premises & Asset Management,Third Party Payments,Other Establishments,Private Contractors,02/05/2024,513003,1185,Personal Data - Data Protection Act 1998
Cultural & Related,Open Spaces,Environmental,Transport Related Expenditure,Direct Transport Costs,Petrol,09/05/2024,513389,989.19,Allstar Business Solutions Limited
External Trading Accounts,Business Parks,Premises & Asset Management,Premises related Expenditure,Energy Costs,Electricity,02/05/2024,512369,989.81,Npower
Environmental & Regulatory,Regulatory Services,Housing and Environmental Health ,Supplies & Services,Grants and subscriptions,Capital Grants,02/05/2024,513013,1200,A & E Builders
Central Services,Corporate & Democratic Core,Corporate & Democratic,Supplies & Services,Services,Legal Fees,23/05/2024,514232,1000,Landmark Chambers
External Trading Accounts,Economic Development,Premises & Asset Management,Premises related Expenditure,Repairs Alterations & Maintenance of Buildings,Planned Maintenance - Non Est,23/05/2024,514216,1000.16,Corrigenda Ltd
Cultural & Related,Culture & Heritage,Community and Leisure ,Supplies & Services,Miscellaneous Expenses,Booking Of Acts,23/05/2024,514474,1223.25,Our Star Theatre Company Ltd
Central Services to the Public,Management & Support Services,Finance,Supplies & Services,"Printing, Stationery & General Office Expenses",Postage Costs,16/05/2024,513539,1028.24,Whistl
Central Services to the Public,Management & Support Services,IT,Supplies & Services,"Equipment, Furniture & Materials",IT Supp and Serv AMP,09/05/2024,513099,1038.4,Misco Technologies Ltd
Central Services to the Public,Management & Support Services,Legal & Democratic,Employees,Indirect Employee Expenses,Agency Staff - Waged Posts,02/05/2024,512507,1065,Sellick Partnership Ltd
Planning & Development,Building Control,Planning & Building,Third Party Payments,Commuted Sum,s106 Developer contributions,30/05/2024,515067,1293,Personal Data - Data Protection Act 1998
Cultural & Related,Open Spaces,Community and Leisure ,Supplies & Services,"Equipment, Furniture & Materials",Purchase Equip + Materials,16/05/2024,513550,1087.09,Wildflower Turf Ltd
Environmental & Regulatory,Waste & Recycling Management,Environmental,Transport Related Expenditure,Direct Transport Costs,Repair Materials,09/05/2024,512832,36.59,Md Services (Andover) Ltd
Central Services to the Public,Management & Support Services,Environmental,Transport Related Expenditure,Direct Transport Costs,Workshop Consumables,09/05/2024,512832,1079.23,Md Services (Andover) Ltd
Cultural & Related,Recreation & Sport,Community and Leisure ,Premises related Expenditure,Water Services,Water And Sewerage Charges,23/05/2024,513768,1341.55,Castle Water Limited
External Trading Accounts,Economic Development,Premises & Asset Management,Premises related Expenditure,Repairs Alterations & Maintenance of Buildings,Planned Maintenance - Non Est,16/05/2024,513113,570.36,Temple Lifts Ltd
"Highways, Roads & Transport",Parking Services,Plan Pol & Transport,Premises related Expenditure,Repairs Alterations & Maintenance of Buildings,Planned Maintenance - Non Est,16/05/2024,513113,570.36,Temple Lifts Ltd
Environmental & Regulatory,Street Cleansing (not chargeable to Highways),Environmental,Transport Related Expenditure,Direct Transport Costs,Tyres,30/05/2024,514605,340.15,Tructyre Ats
Central Services to the Public,Management & Support Services,Environmental,Transport Related Expenditure,Direct Transport Costs,Repair Materials,30/05/2024,514605,802.6,Tructyre Ats
Cultural & Related,Open Spaces,Community and Leisure ,Supplies & Services,"Equipment, Furniture & Materials",Purchase Equip + Materials,23/05/2024,513470,1147,Broxap Limited (Stadia Sports )
Environmental & Regulatory,Regulatory Services,Housing and Environmental Health ,Supplies & Services,Miscellaneous Expenses,Other Miscellaneous Costs,02/05/2024,513006,1380,Gwella Contracting Services Ltd
Environmental & Regulatory,Waste management,Environmental,Transport Related Expenditure,Direct Transport Costs,Repair Materials,02/05/2024,512363,1168.82,Wasteparts Uk Ltd
Planning & Development,Development Control,Planning & Building,Supplies & Services,Services,Legal Fees,02/05/2024,512889,1200,No5 Chambers
Central Services to the Public,Management & Support Services,Finance,Supplies & Services,Services,Professional Fees,30/05/2024,512319,1230,Public Sector Consultants Ltd
Environmental & Regulatory,Street Cleansing (not chargeable to Highways),Environmental,Supplies & Services,"Equipment, Furniture & Materials",Purchase Equip + Materials,23/05/2024,513521,1238.82,Addex Urban
Central Services to the Public,Management & Support Services,Premises & Asset Management,Third Party Payments,Other Establishments,Private Contractors,30/05/2024,514885,1251,Doorgear Limited
"Highways, Roads & Transport",Parking Services,Plan Pol & Transport,Supplies & Services,Services,Professional Fees,23/05/2024,513381,1257.19,Advam (Uk) Limited
Central Services to the Public,Management & Support Services,Premises & Asset Management,Employees,Indirect Employee Expenses,Agency Staff - Waged Posts,09/05/2024,513479,1272,Matchtech Group Uk Ltd
Central Services to the Public,Management & Support Services,HR Services,Supplies & Services,Services,External Training Consultants,02/05/2024,512759,1295,Yellowday Training Ltd
Cultural & Related,Culture & Heritage,Community and Leisure ,Premises related Expenditure,Repairs Alterations & Maintenance of Buildings,Estates premises costs - AMP,02/05/2024,512779,1325,Rws Consultants Ltd
Environmental & Regulatory,Street Cleansing (not chargeable to Highways),Environmental,Transport Related Expenditure,Direct Transport Costs,Tyres,02/05/2024,512992,398,Tructyre Ats
Environmental & Regulatory,Waste management,Environmental,Transport Related Expenditure,Direct Transport Costs,Tyres,02/05/2024,512992,892.02,Tructyre Ats
Environmental & Regulatory,Waste management,Environmental,Transport Related Expenditure,Direct Transport Costs,Tyres,02/05/2024,512992,53.44,Tructyre Ats
Central Services to the Public,Management & Support Services,IT,Supplies & Services,Communications & Computing,Land Line Telephone Charges,23/05/2024,514204,1344.47,Gamma
Planning & Development,Development Control,Planning & Building,Supplies & Services,Services,Legal Fees,23/05/2024,514227,1350,Cornerstone Barristers
External Trading Accounts,Business Parks,Premises & Asset Management,Premises related Expenditure,Repairs Alterations & Maintenance of Buildings,Planned Maintenance - Non Est,30/05/2024,515057,1362.3,Pattco
Planning & Development,Planning Policy,Plan Pol & Transport,Supplies & Services,Grants & Subscriptions,Grants,16/05/2024,512524,1671.33,Hampshire County Council
Environmental & Regulatory,Regulatory Services,Housing and Environmental Health ,Supplies & Services,Grants and subscriptions,Capital Grants,02/05/2024,513014,1675,Ramps For Access (Powerguards)
Central Services to the Public,Management & Support Services,IT,Supplies & Services,Communications & Computing,Communication Links,02/05/2024,512873,1161.76,Zen Internet Limited
Cultural & Related,Recreation & Sport,Community and Leisure ,Supplies & Services,Communications & Computing,Land Line Telephone Charges,02/05/2024,512873,103.5,Zen Internet Limited
Cultural & Related,Culture & Heritage,Community and Leisure ,Supplies & Services,Communications & Computing,Land Line Telephone Charges,02/05/2024,512873,35,Zen Internet Limited
"Highways, Roads & Transport",Parking Services,Plan Pol & Transport,Supplies & Services,Communications & Computing,Communication Links,02/05/2024,512873,45.23,Zen Internet Limited
"Highways, Roads & Transport",Parking Services,Plan Pol & Transport,Supplies & Services,Communications & Computing,Land Line Telephone Charges,02/05/2024,512873,63.41,Zen Internet Limited
Environmental & Regulatory,"Cemetery, Cremation and Mortuary Services",Community and Leisure ,Supplies & Services,Miscellaneous Expenses,National Assist Act Burials,08/05/2024,512857,1695,Dunnings Funeral Services
Central Services to the Public,Management & Support Services,Premises & Asset Management,Third Party Payments,Other Establishments,Private Contractors,23/05/2024,514366,1426.02,Corrigenda Ltd
Planning & Development,Development Control,Planning & Building,Employees,Indirect Employee Expenses,Temporary Staff,02/05/2024,513121,1430,Sarto Thomas Limited
Central Services to the Public,Management & Support Services,Premises & Asset Management,Employees,Indirect Employee Expenses,Agency Staff - Waged Posts,02/05/2024,512885,1440,Matchtech Group Uk Ltd
Cultural & Related,Tourism,Planning Policy & Economic Development ,Premises related Expenditure,Repairs Alterations & Maintenance of Buildings,Planned Maintenance - Non Est,02/05/2024,512990,64.24,Temple Lifts Ltd
Cultural & Related,Culture & Heritage,Premises & Asset Management,Premises related Expenditure,Repairs Alterations & Maintenance of Buildings,Planned Maintenance - Non Est,02/05/2024,512990,225,Temple Lifts Ltd
Cultural & Related,Culture & Heritage,Premises & Asset Management,Premises related Expenditure,Repairs Alterations & Maintenance of Buildings,Planned Maintenance - Non Est,02/05/2024,512990,32.12,Temple Lifts Ltd
Central Services to the Public,Management & Support Services,Premises & Asset Management,Premises related Expenditure,Repairs Alterations & Maintenance of Buildings,Planned Maintenance - Non Est,02/05/2024,512990,900,Temple Lifts Ltd
Cultural & Related,Recreation & Sport,Community and Leisure ,Premises related Expenditure,Repairs Alterations & Maintenance of Buildings,Planned Maintenance - Non Est,02/05/2024,512990,225,Temple Lifts Ltd
Housing Services,Housing Benefits ,Revenues,Supplies & Services,Services,Training Courses,01/05/2024,511699,1450,Airey Consultancy Services Ltd
External Trading Accounts,Economic Development,Premises & Asset Management,Premises related Expenditure,Repairs Alterations & Maintenance of Buildings,Planned Maintenance - Non Est,16/05/2024,513852,1451.75,The Alarming Company
Cultural & Related,Culture & Heritage,Premises & Asset Management,Premises related Expenditure,Repairs Alterations & Maintenance of Buildings,Planned Maintenance - Non Est,30/05/2024,514925,415,Movable Wall Tech Limited
Cultural & Related,Culture & Heritage,Premises & Asset Management,Premises related Expenditure,Repairs Alterations & Maintenance of Buildings,Planned Maintenance - Non Est,30/05/2024,514925,415,Movable Wall Tech Limited
Central Services to the Public,Management & Support Services,Premises & Asset Management,Premises related Expenditure,Repairs Alterations & Maintenance of Buildings,Planned Maintenance - Non Est,30/05/2024,514925,625,Movable Wall Tech Limited
"Highways, Roads & Transport",Public Transport,Plan Pol & Transport,Third Party Payments,Transport Operators in Respect of Concessionary Fares,Voluntary Orgs Reimbursement,23/05/2024,514372,1763,Andover Neighbourcare
External Trading Accounts,Business Parks,Premises & Asset Management,Premises related Expenditure,Energy Costs,Electricity,23/05/2024,512923,1476.89,Npower
Central Services to the Public,Management & Support Services,Premises & Asset Management,Third Party Payments,Other Establishments,Private Contractors,16/05/2024,513749,1477,Spheretech Ltd
Cultural & Related,Culture & Heritage,Community and Leisure ,Third Party Payments,Private contractors,Main Contractor Costs,30/05/2024,514874,1485,J P Lighting Design
Cultural & Related,Open Spaces,Community and Leisure ,Premises related Expenditure,Grounds Maintenance Costs,Gm - Additional Works,16/05/2024,513836,1490,S K Wrapping Services
External Trading Accounts,Business Parks,Premises & Asset Management,Supplies & Services,Services,Professional Fees,23/05/2024,513064,1500,Ashfords Llp
Planning & Development,Economic Development,Planning Policy & Economic Development ,Supplies & Services,Services,Project Consultancy - Policy,23/05/2024,513854,1800,Rm Communications
Housing Services,"Housing strategy, advice and enabling",Housing and Environmental Health ,Supplies & Services,Communications & Computing,Software Maintenance,02/05/2024,510030,1507.19,Civica Uk Ltd
Central Services,Corporate & Democratic Core,Corporate & Democratic,Supplies & Services,Services,Legal Fees,09/05/2024,512248,1511,Sharpe Pritchard Llp
Central Services to the Public,Management & Support Services,Premises & Asset Management,Employees,Indirect Employee Expenses,Agency Staff - Waged Posts,30/05/2024,515032,1512,Matchtech Group Uk Ltd
Central Services to the Public,Management & Support Services,Premises & Asset Management,Employees,Indirect Employee Expenses,Agency Staff - Waged Posts,09/05/2024,513478,1560,Matchtech Group Uk Ltd
Central Services to the Public,Management & Support Services,Premises & Asset Management,Employees,Indirect Employee Expenses,Agency Staff - Waged Posts,30/05/2024,514952,1560,Matchtech Group Uk Ltd
Central Services to the Public,Management & Support Services,Premises & Asset Management,Employees,Indirect Employee Expenses,Agency Staff - Waged Posts,30/05/2024,515033,1560,Matchtech Group Uk Ltd
Environmental & Regulatory,Waste management,Environmental,Employees,Indirect Employee Expenses,Agency Staff - Waged Posts,02/05/2024,512777,925.9,Aligra
Environmental & Regulatory,Waste management,Environmental,Employees,Indirect Employee Expenses,Agency Staff - Waged Posts,02/05/2024,512777,648.43,Aligra
Central Services to the Public,Management & Support Services,Premises & Asset Management,Employees,Indirect Employee Expenses,Agency Staff - Waged Posts,02/05/2024,512886,1608,Matchtech Group Uk Ltd
Central Services to the Public,Management & Support Services,Premises & Asset Management,Third Party Payments,Other Establishments,Private Contractors,23/05/2024,514328,1676,Purbeck Civil Engineering Limited
Central Services to the Public,Management & Support Services,Premises & Asset Management,Employees,Indirect Employee Expenses,Agency Staff - Waged Posts,02/05/2024,512877,1680,Matchtech Group Uk Ltd
Cultural & Related,Open Spaces,Community and Leisure ,Premises related Expenditure,Water Services,Water And Sewerage Charges,30/05/2024,514346,1680,Aquam Water Services
Central Services,Corporate & Democratic Core,Corporate & Democratic,Supplies & Services,Catering,Catering,23/05/2024,514287,2047.5,Andover Buffets Limited
Central Services to the Public,Management & Support Services,Premises & Asset Management,Third Party Payments,Other Establishments,Private Contractors,16/05/2024,513840,1707.5,Axis Fire And Security Services Ltd
Central Services to the Public,Elections,Legal & Democratic,Supplies & Services,"Equipment, Furniture & Materials",Purchase Equip + Materials,16/05/2024,513748,2075.28,Swift Hire (South & South East) Ltd
Cultural & Related,Culture & Heritage,Community and Leisure ,Supplies & Services,Miscellaneous Expenses,Booking Of Acts,16/05/2024,513544,1762.78,Little Wander Ltd
Cultural & Related,Recreation & Sport,Community and Leisure ,Premises related Expenditure,Repairs Alterations & Maintenance of Buildings,Estates premises costs - AMP,23/05/2024,514585,1783.09,Ava Recreation
Planning & Development,Building Control,Planning & Building,Employees,Indirect Employee Expenses,Agency Staff - Waged Posts,23/05/2024,514329,1800.86,Hays Specialist Recruitment
Planning & Development,Building Control,Planning & Building,Employees,Indirect Employee Expenses,Agency Staff - Waged Posts,09/05/2024,513119,1816.16,Hays Specialist Recruitment
External Trading Accounts,Business Parks,Premises & Asset Management,Premises related Expenditure,Repairs Alterations & Maintenance of Buildings,Planned Maintenance - Non Est,23/05/2024,514215,19.92,Corrigenda Ltd
Cultural & Related,Culture & Heritage,Premises & Asset Management,Premises related Expenditure,Repairs Alterations & Maintenance of Buildings,Planned Maintenance - Non Est,23/05/2024,514215,19.92,Corrigenda Ltd
Cultural & Related,Culture & Heritage,Premises & Asset Management,Premises related Expenditure,Repairs Alterations & Maintenance of Buildings,Planned Maintenance - Non Est,23/05/2024,514215,239.04,Corrigenda Ltd
Central Services to the Public,Management & Support Services,Premises & Asset Management,Premises related Expenditure,Repairs Alterations & Maintenance of Buildings,Planned Maintenance - Non Est,23/05/2024,514215,19.92,Corrigenda Ltd
Central Services to the Public,Management & Support Services,Premises & Asset Management,Premises related Expenditure,Repairs Alterations & Maintenance of Buildings,Planned Maintenance - Non Est,23/05/2024,514215,19.92,Corrigenda Ltd
Cultural & Related,Recreation & Sport,Community and Leisure ,Premises related Expenditure,Repairs Alterations & Maintenance of Buildings,Planned Maintenance - Non Est,23/05/2024,514215,199.2,Corrigenda Ltd
Cultural & Related,Recreation & Sport,Community and Leisure ,Premises related Expenditure,Repairs Alterations & Maintenance of Buildings,Planned Maintenance - Non Est,23/05/2024,514215,517.92,Corrigenda Ltd
Cultural & Related,Recreation & Sport,Community and Leisure ,Premises related Expenditure,Repairs Alterations & Maintenance of Buildings,Planned Maintenance - Non Est,23/05/2024,514215,498,Corrigenda Ltd
Environmental & Regulatory,"Cemetery, Cremation and Mortuary Services",Community and Leisure ,Premises related Expenditure,Repairs Alterations & Maintenance of Buildings,Planned Maintenance - Non Est,23/05/2024,514215,19.92,Corrigenda Ltd
Cultural & Related,Open Spaces,Community and Leisure ,Premises related Expenditure,Repairs Alterations & Maintenance of Buildings,Planned Maintenance - Non Est,23/05/2024,514215,39.84,Corrigenda Ltd
Cultural & Related,Culture & Heritage,Community and Leisure ,Premises related Expenditure,Repairs Alterations & Maintenance of Buildings,Planned Maintenance - Non Est,23/05/2024,514215,239.04,Corrigenda Ltd
Cultural & Related,Open Spaces,Community and Leisure ,Premises related Expenditure,Grounds Maintenance Costs,Gm - Additional Works,30/05/2024,513523,1835.4,Vesper Conservation & Ecology Ltd
Cultural & Related,Open Spaces,Community and Leisure ,Supplies & Services,"Equipment, Furniture & Materials",Purchase Equip + Materials,23/05/2024,513945,1836,Wildflower Turf Ltd
Central Services,Corporate & Democratic Core,Corporate & Democratic,Premises related Expenditure,Rents,Premises Hire,09/05/2024,512209,2213.75,Andover Community Church
Central Services,Corporate & Democratic Core,Corporate & Democratic,Supplies & Services,Grants & Subscriptions,Subscriptions,30/05/2024,514244,1845.38,South East England Councils
Environmental & Regulatory,Regulatory Services,Housing and Environmental Health ,Supplies & Services,Grants and subscriptions,Capital Grants,23/05/2024,514574,2215,Liftech Systems (Se) Ltd
Central Services to the Public,Management & Support Services,Premises & Asset Management,Third Party Payments,Other Establishments,Private Contractors,23/05/2024,514222,1846.7,Corrigenda Ltd
Cultural & Related,Culture & Heritage,Community and Leisure ,Supplies & Services,Miscellaneous Expenses,Booking Of Acts,09/05/2024,513537,1850,All Electric Productions
"Highways, Roads & Transport",Parking Services,Plan Pol & Transport,Supplies & Services,"Printing, Stationery & General Office Expenses",External Printing,02/05/2024,512785,1902,Paperwork (Uk) Ltd
Environmental & Regulatory,Regulatory Services,Housing and Environmental Health ,Supplies & Services,Grants and subscriptions,Capital Grants,30/05/2024,515077,2294.05,1st Choice Stairlifts Ltd
Central Services to the Public,Management & Support Services,Finance,Supplies & Services,"Printing, Stationery & General Office Expenses",Written Media,09/05/2024,513568,2300,Cipfa
Central Services to the Public,Management & Support Services,Premises & Asset Management,Third Party Payments,Other Establishments,Private Contractors,09/05/2024,513551,1925,Gibson & Co Ceilings
Central Services to the Public,Management & Support Services,Premises & Asset Management,Third Party Payments,Other Establishments,Private Contractors,23/05/2024,513975,1928.7,Purbeck Civil Engineering Limited
Cultural & Related,Open Spaces,Community and Leisure ,Premises related Expenditure,Grounds Maintenance Costs,Non Contract Tree Works,09/05/2024,509570,1995.69,Gristwood & Toms Ltd
Planning & Development,Building Control,Planning & Building,Employees,Indirect Employee Expenses,Agency Staff - Waged Posts,30/05/2024,514607,2023.82,Hays Specialist Recruitment
Cultural & Related,Culture & Heritage,Community and Leisure ,Supplies & Services,Miscellaneous Expenses,Booking Of Acts,02/05/2024,512504,2037.51,Hot Rock Productions Ltd
Planning & Development,Development Control,Planning & Building,Employees,Indirect Employee Expenses,Temporary Staff,23/05/2024,514240,2456.1,Wadey Trees
Environmental & Regulatory,Community Development,Community and Leisure ,Supplies & Services,Grants & Subscriptions,Grants,30/05/2024,515069,2500,Andover Foodbank
Environmental & Regulatory,Waste management,Environmental,Employees,Indirect Employee Expenses,Agency Staff - Waged Posts,02/05/2024,512776,1268.5,Aligra
Environmental & Regulatory,Waste management,Environmental,Employees,Indirect Employee Expenses,Agency Staff - Waged Posts,02/05/2024,512776,834.88,Aligra
Central Services to the Public,Management & Support Services,Premises & Asset Management,Employees,Indirect Employee Expenses,Agency Staff - Waged Posts,16/05/2024,513553,2114.3,Property Partners Recruitment Ltd
Environmental & Regulatory,Waste management,Environmental,Employees,Indirect Employee Expenses,Agency Staff - Waged Posts,30/05/2024,514321,1217.68,Aligra
Environmental & Regulatory,Waste management,Environmental,Employees,Indirect Employee Expenses,Agency Staff - Waged Posts,30/05/2024,514321,904.64,Aligra
Cultural & Related,Recreation & Sport,Community and Leisure ,Premises related Expenditure,Repairs Alterations & Maintenance of Buildings,Estates premises costs - AMP,16/05/2024,513839,2155.23,Ava Recreation
External Trading Accounts,Business Parks,Premises & Asset Management,Premises related Expenditure,Repairs Alterations & Maintenance of Buildings,Estates premises costs - AMP,23/05/2024,514250,2600,Bressummer A.R.K Limited
Cultural & Related,Culture & Heritage,Community and Leisure ,Supplies & Services,Miscellaneous Expenses,Booking Of Acts,16/05/2024,512929,2180.29,Plosive Limited
Environmental & Regulatory,Waste management,Environmental,Employees,Indirect Employee Expenses,Agency Staff - Waged Posts,02/05/2024,512772,1830.83,24-7 Staffing
Environmental & Regulatory,Waste management,Environmental,Employees,Indirect Employee Expenses,Agency Staff - Waged Posts,02/05/2024,512772,361.24,24-7 Staffing
Planning & Development,Building Control,Planning & Building,Employees,Indirect Employee Expenses,Agency Staff - Waged Posts,23/05/2024,514200,2275.12,Hays Specialist Recruitment
Environmental & Regulatory,Regulatory Services,Housing and Environmental Health ,Supplies & Services,Grants and subscriptions,Capital Grants,02/05/2024,513176,2765,Liftech Systems (Se) Ltd
Central Services to the Public,Management & Support Services,Environmental,Transport Related Expenditure,Direct Transport Costs,Repair Materials,30/05/2024,514627,2325.3,Wasteparts Uk Ltd
Central Services,Corporate & Democratic Core,Corporate & Democratic,Supplies & Services,Services,Project Consultancy - Policy,02/05/2024,513073,2340,Cadence Innova Ltd
Central Services to the Public,Management & Support Services,Premises & Asset Management,Third Party Payments,Other Establishments,Private Contractors,23/05/2024,513982,2387.84,Options Flooring Ltd
Central Services to the Public,Management & Support Services,Premises & Asset Management,Third Party Payments,Other Establishments,Private Contractors,23/05/2024,514217,2406.31,Corrigenda Ltd
External Trading Accounts,Business Parks,Premises & Asset Management,Premises related Expenditure,Energy Costs,Electricity,30/05/2024,514601,2761.5,Edf Energy
Central Services to the Public,Elections,Legal & Democratic,Premises related Expenditure,Rents,Premises Hire,23/05/2024,514395,2946,Wernick Event Hire Ltd
Planning & Development,Building Control,Planning & Building,Employees,Indirect Employee Expenses,Agency Staff - Waged Posts,02/05/2024,512789,2500.78,Hays Specialist Recruitment
Environmental & Regulatory,Waste management,Environmental,Employees,Indirect Employee Expenses,Agency Staff - Waged Posts,09/05/2024,513096,1719.92,24-7 Staffing
Environmental & Regulatory,Waste management,Environmental,Employees,Indirect Employee Expenses,Agency Staff - Waged Posts,09/05/2024,513096,811.59,24-7 Staffing
"Highways, Roads & Transport",Public Transport,Plan Pol & Transport,Third Party Payments,Transport Operators in Respect of Concessionary Fares,Voluntary Orgs Reimbursement,23/05/2024,514361,3043,Andover Neighbourcare
Environmental & Regulatory,Regulatory Services,Housing and Environmental Health ,Supplies & Services,Miscellaneous Expenses,Kennel fees,23/05/2024,513743,2545.5,Three Oak Boarding Kennels
"Highways, Roads & Transport",Public Transport,Plan Pol & Transport,Third Party Payments,Transport Operators in Respect of Concessionary Fares,Voluntary Orgs Reimbursement,23/05/2024,514344,3097,Andover Neighbourcare
Environmental & Regulatory,Regulatory Services,Housing and Environmental Health ,Supplies & Services,Grants and subscriptions,Capital Grants,30/05/2024,515080,3115,A & E Builders
Central Services to the Public,Management & Support Services,Premises & Asset Management,Employees,Indirect Employee Expenses,Agency Staff - Waged Posts,23/05/2024,513978,2601.8,Property Partners Recruitment Ltd
Central Services to the Public,Elections,Legal & Democratic,Premises related Expenditure,Rents,Premises Hire,23/05/2024,514379,3228,Wernick Event Hire Ltd
Central Services to the Public,Elections,Legal & Democratic,Premises related Expenditure,Rents,Premises Hire,23/05/2024,514396,3228,Wernick Event Hire Ltd
Central Services to the Public,Elections,Legal & Democratic,Premises related Expenditure,Rents,Premises Hire,23/05/2024,514453,3228,Wernick Event Hire Ltd
Central Services to the Public,Elections,Legal & Democratic,Premises related Expenditure,Rents,Premises Hire,23/05/2024,514454,3228,Wernick Event Hire Ltd
Central Services to the Public,Elections,Legal & Democratic,Premises related Expenditure,Rents,Premises Hire,23/05/2024,514455,3228,Wernick Event Hire Ltd
Environmental & Regulatory,Waste management,Environmental,Employees,Indirect Employee Expenses,Agency Staff - Waged Posts,23/05/2024,513851,1945.77,24-7 Staffing
Environmental & Regulatory,Waste management,Environmental,Employees,Indirect Employee Expenses,Agency Staff - Waged Posts,23/05/2024,513851,766.66,24-7 Staffing
Cultural & Related,Recreation & Sport,Community and Leisure ,Premises related Expenditure,Repairs Alterations & Maintenance of Buildings,Estates premises costs - AMP,16/05/2024,513838,2724.11,Ava Recreation
Central Services to the Public,Management & Support Services,Premises & Asset Management,Supplies & Services,Grants & Subscriptions,Subscriptions,09/05/2024,513495,2860,Building Cost Information Service Limited
Central Services to the Public,Management & Support Services,Premises & Asset Management,Third Party Payments,Other Establishments,Contract Catering,02/05/2024,513090,2929.06,Edwards And Ward Ltd
Central Services to the Public,Management & Support Services,Premises & Asset Management,Third Party Payments,Other Establishments,Contract Catering,30/05/2024,514592,2929.06,Edwards And Ward Ltd
Central Services to the Public,Management & Support Services,IT,Supplies & Services,Communications & Computing,Software Maintenance,23/05/2024,511316,2979.89,Phoenix Software Ltd
Environmental & Regulatory,Waste management,Environmental,Transport Related Expenditure,Direct Transport Costs,Tyres,09/05/2024,512774,3140.54,Tructyre Ats
Planning & Development,Development Control,Planning & Building,Employees,Indirect Employee Expenses,Temporary Staff,02/05/2024,512849,3217.5,Hampshire County Council
Cultural & Related,Regulatory Services,Community and Leisure ,Third Party Payments,Private contractors,Main Contractor Costs,02/05/2024,513174,3885,Romsey Operatic And Dramatic Society
Central Services to the Public,Management & Support Services,Premises & Asset Management,Employees,Indirect Employee Expenses,Agency Staff - Waged Posts,09/05/2024,513089,3250,Property Partners Recruitment Ltd
Central Services to the Public,Management & Support Services,Premises & Asset Management,Employees,Indirect Employee Expenses,Agency Staff - Waged Posts,30/05/2024,514845,3250,Property Partners Recruitment Ltd
Central Services to the Public,Management & Support Services,Premises & Asset Management,Employees,Indirect Employee Expenses,Agency Staff - Waged Posts,02/05/2024,512518,3257.2,Property Partners Recruitment Ltd
External Trading Accounts,Economic Development,Premises & Asset Management,Premises related Expenditure,Energy Costs,Electricity,02/05/2024,512377,3279.81,Npower
Planning & Development,Development Control,Planning & Building,Transport Related Expenditure,Contract Hire and Operating Leases,Officer lease cars,09/05/2024,513443,3953.82,Sinclair Finance & Leasing Co Ltd
Central Services,Corporate & Democratic Core,Corporate & Democratic,Supplies & Services,Services,Conference Costs,02/05/2024,512821,3295,Hemming Group Limited
Central Services to the Public,Management & Support Services,Finance,Supplies & Services,Services,Vat Consultancy,09/05/2024,513457,3350,Lavat Consulting Limited
Central Services to the Public,Management & Support Services,Finance,Supplies & Services,"Printing, Stationery & General Office Expenses",Postage Costs,23/05/2024,513980,4091.81,Pitney Bowes Finance Ltd
Cultural & Related,Culture & Heritage,Community and Leisure ,Third Party Payments,Private contractors,Main Contractor Costs,02/05/2024,512900,3530,Wessex Archaeolgy Ltd
Environmental & Regulatory,Regulatory Services,Housing and Environmental Health ,Supplies & Services,Grants and subscriptions,Capital Grants,16/05/2024,514006,4246.24,Ghd Partnership Ltd
Environmental & Regulatory,Regulatory Services,Housing and Environmental Health ,Supplies & Services,Grants and subscriptions,Capital Grants,16/05/2024,514005,4250,Easy Care Systems
Cultural & Related,Culture & Heritage,Community and Leisure ,Supplies & Services,Miscellaneous Expenses,Booking Of Acts,02/05/2024,512503,3648.95,Lundquist Mlm Concerts Ltd
Central Services to the Public,Management & Support Services,Environmental,Transport Related Expenditure,Direct Transport Costs,Vehicles and Plant,02/05/2024,512858,3674,Titchfield Media Limited
"Highways, Roads & Transport",Parking Services,Plan Pol & Transport,Transport Related Costs,Management Fee,Car Park charges,23/05/2024,513535,3756.54,Park Now Limited
Cultural & Related,Culture & Heritage,Community and Leisure ,Premises related Expenditure,Energy Costs,Electricity,16/05/2024,513512,3546.2,Sparsholt College Hampshire
Cultural & Related,Culture & Heritage,Community and Leisure ,Premises related Expenditure,Water Services,Water And Sewerage Charges,16/05/2024,513512,254.34,Sparsholt College Hampshire
Cultural & Related,Regulatory Services,Community and Leisure ,Third Party Payments,Private contractors,Main Contractor Costs,16/05/2024,513979,4560,Raods Plaza Theatre
Environmental & Regulatory,Regulatory Services,Housing and Environmental Health ,Supplies & Services,Grants and subscriptions,Capital Grants,02/05/2024,513122,4593,Easy Care Systems
Central Services,Corporate & Democratic Core,Corporate & Democratic,Supplies & Services,Communications & Computing,Computer Software,02/05/2024,512762,3900,Confabulate Limited
External Trading Accounts,Economic Development,Premises & Asset Management,Premises related Expenditure,Cleaning and domestic supplies,Contract Cleaning - Non Estates,23/05/2024,514323,3988.33,Ultra Cleaning Ltd
Central Services,Corporate & Democratic Core,Corporate & Democratic,Supplies & Services,Services,Legal Fees,23/05/2024,514269,4022,Sharpe Pritchard Llp
Environmental & Regulatory,Regulatory Services,Housing and Environmental Health ,Supplies & Services,Grants and subscriptions,Capital Grants,16/05/2024,513967,4925,Liftech Systems (Se) Ltd
Environmental & Regulatory,Regulatory Services,Housing and Environmental Health ,Supplies & Services,Grants and subscriptions,Capital Grants,02/05/2024,513175,4998,Bentley Mobility Services
Environmental & Regulatory,Regulatory Services,Housing and Environmental Health ,Supplies & Services,Grants and subscriptions,Capital Grants,02/05/2024,513012,5205.95,J D Codd Ltd
Central Services,Corporate & Democratic Core,Corporate & Democratic,Supplies & Services,Services,Project Consultancy - Policy,23/05/2024,514202,4430,Hampshire Printing Services
Cultural & Related,Open Spaces,Environmental,Supplies & Services,"Equipment, Furniture & Materials",Purchase Equip + Materials,23/05/2024,510035,4439,Lister Wilder
External Trading Accounts,Economic Development,Premises & Asset Management,Supplies & Services,Miscellaneous Expenses,Waste Collection,23/05/2024,513528,4480.66,Grist Environmental
Cultural & Related,Open Spaces,Environmental,Supplies & Services,"Equipment, Furniture & Materials",Purchase Equip + Materials,23/05/2024,513865,4680.98,Radiodetection Ltd
Cultural & Related,Culture & Heritage,Community and Leisure ,Supplies & Services,Miscellaneous Expenses,Booking Of Acts,09/05/2024,513468,4760,Avalon Management Group Ltd
Cultural & Related,Recreation & Sport,Community and Leisure ,Supplies & Services,Grants and subscriptions,Capital Grants,09/05/2024,513572,5786.4,North Baddesley Community Association
Environmental & Regulatory,Climate Change costs,Plan Pol & Transport,Supplies & Services,Services,Project Consultancy - Policy,23/05/2024,514251,4829.53,Bioregional Development Group
Planning & Development,Planning Policy,Plan Pol & Transport,Supplies & Services,Services,Project Consultancy - Policy,09/05/2024,513072,4833.33,Community Energy South
Environmental & Regulatory,Regulatory Services,Housing and Environmental Health ,Supplies & Services,Grants and subscriptions,Capital Grants,09/05/2024,513577,5812,J D Codd Ltd
Central Services to the Public,Management & Support Services,Finance,Supplies & Services,Services,Insurance ,30/05/2024,515044,5852.92,Zurich Insurance Company
Central Services,Corporate & Democratic Core,Corporate & Democratic,Supplies & Services,Services,Project Consultancy - Policy,23/05/2024,514268,4964,Charcoalblue International Ltd
Central Services to the Public,Management & Support Services,Premises & Asset Management,Third Party Payments,Other Establishments,Private Contractors,23/05/2024,514266,5284.88,Axis Fire And Security Services Ltd
Environmental & Regulatory,Street Cleansing (not chargeable to Highways),Environmental,Transport Related Expenditure,Direct Transport Costs,Tyres,30/05/2024,513955,420.15,Tructyre Ats
Environmental & Regulatory,Waste management,Environmental,Transport Related Expenditure,Direct Transport Costs,Tyres,30/05/2024,513955,4871.99,Tructyre Ats
Planning & Development,Development Control,Planning & Building,Supplies & Services,Grants & Subscriptions,Grants,16/05/2024,513965,6485.77,Defra
Environmental & Regulatory,Regulatory Services,Housing and Environmental Health ,Supplies & Services,Grants and subscriptions,Capital Grants,02/05/2024,513167,6587.51,Column Construction Ltd
Environmental & Regulatory,Regulatory Services,Housing and Environmental Health ,Supplies & Services,Grants and subscriptions,Capital Grants,02/05/2024,513166,6778.12,Lifestyle Solutions
Central Services to the Public,Management & Support Services,Premises & Asset Management,Supplies & Services,"Equipment, Furniture & Materials",Purchase Materials (Job Cost),30/05/2024,514887,5707.2,Woodstock Plumbing & Heating Supp Ltd
Cultural & Related,Culture & Heritage,Community and Leisure ,Supplies & Services,Grants & Subscriptions,Grants,22/05/2024,514285,7000,Test Valley Arts Foundation
Central Services to the Public,Management & Support Services,Premises & Asset Management,Third Party Payments,Other Establishments,Private Contractors,02/05/2024,512848,5855.76,Doorgear Limited
Environmental & Regulatory,Regulatory Services,Housing and Environmental Health ,Supplies & Services,Grants and subscriptions,Capital Grants,02/05/2024,513011,7259.4,Northfield Property Solutions Limited
Environmental & Regulatory,Regulatory Services,Housing and Environmental Health ,Supplies & Services,Grants and subscriptions,Capital Grants,02/05/2024,513179,7342.46,Hazel & West Ltd
Environmental & Regulatory,Regulatory Services,Housing and Environmental Health ,Supplies & Services,Grants and subscriptions,Capital Grants,30/05/2024,515078,7380.69,A & E Builders
Cultural & Related,Culture & Heritage,Community and Leisure ,Supplies & Services,Miscellaneous Expenses,Booking Of Acts,02/05/2024,512337,6288.67,Imwp (Uk) Ltd
Central Services to the Public,Management & Support Services,Premises & Asset Management,Premises related Expenditure,Repairs Alterations & Maintenance of Buildings,Planned Maintenance - Non Est,30/05/2024,515059,6476.9,Pattco
Central Services to the Public,Management & Support Services,IT,Supplies & Services,"Equipment, Furniture & Materials",Maintenance Equip + Materials,30/05/2024,514876,6535.72,Dssl Group Ltd
Environmental & Regulatory,Regulatory Services,Housing and Environmental Health ,Supplies & Services,Grants and subscriptions,Capital Grants,02/05/2024,513168,7871.18,Acer Renovations Ltd
Cultural & Related,Culture & Heritage,Estates and Economic Development ,Third Party Payments,Private contractors,Main Contractor Costs,23/05/2024,512810,6657.56,Hankinson Duckett Associates
Environmental & Regulatory,Regulatory Services,Housing and Environmental Health ,Supplies & Services,Grants and subscriptions,Capital Grants,30/05/2024,515075,8686.85,Acer Renovations Ltd
Cultural & Related,Open Spaces,Community and Leisure ,Premises related Expenditure,Grounds Maintenance Costs,Gm - Additional Works,23/05/2024,514619,7485.4,Rocon Contractors Ltd
Environmental & Regulatory,Street Cleansing (not chargeable to Highways),Environmental,Supplies & Services,"Equipment, Furniture & Materials",Purchase Equip + Materials,23/05/2024,511866,8022.23,Cromwell Polythene Ltd
Central Services,Corporate & Democratic Core,Corporate & Democratic,Supplies & Services,Services,Legal Fees,30/05/2024,512989,8206.88,Sharpe Pritchard Llp
Environmental & Regulatory,Regulatory Services,Housing and Environmental Health ,Supplies & Services,Grants and subscriptions,Capital Grants,23/05/2024,514573,10000,Platinum Park Home Services
Cultural & Related,Open Spaces,Environmental,Supplies & Services,"Equipment, Furniture & Materials",Purchase Equip + Materials,30/05/2024,515008,8653,Hunt Forest Group Ltd
Central Services to the Public,Management & Support Services,Legal & Democratic,Employees,Indirect Employee Expenses,Agency Staff - Waged Posts,30/05/2024,513463,8720.83,Vivid Resourcing
External Trading Accounts,Business Parks,Premises & Asset Management,Premises related Expenditure,Repairs Alterations & Maintenance of Buildings,Planned Maintenance - Non Est,30/05/2024,515061,8843,Pattco
Cultural & Related,Recreation & Sport,Community and Leisure ,Premises related Expenditure,Repairs Alterations & Maintenance of Buildings,General Repairs,02/05/2024,513070,8911.44,Rocon Contractors Ltd
Central Services,Corporate & Democratic Core,Corporate & Democratic,Supplies & Services,Services,Legal Fees,30/05/2024,514595,10900,Radcliffe Chambers
Environmental & Regulatory,Regulatory Services,Housing and Environmental Health ,Supplies & Services,Grants and subscriptions,Capital Grants,30/05/2024,515079,12000,A & E Builders
Central Services to the Public,Elections,Legal & Democratic,Premises related Expenditure,Rents,Premises Hire,23/05/2024,514362,12059.88,Places For People Leisure Ltd - Developments
Central Services to the Public,Management & Support Services,Finance,Supplies & Services,Services,Insurance ,30/05/2024,515043,12793.01,Zurich Insurance Company
Cultural & Related,Open Spaces,Environmental,Transport Related Expenditure,Direct Transport Costs,External Garages,09/05/2024,512773,7072.8,Avr Mobiles Ltd
Environmental & Regulatory,Street Cleansing (not chargeable to Highways),Environmental,Transport Related Expenditure,Direct Transport Costs,External Garages,09/05/2024,512773,3704.8,Avr Mobiles Ltd
Central Services to the Public,Management & Support Services,Premises & Asset Management,Third Party Payments,Other Establishments,Private Contractors,30/05/2024,514886,11687,Doorgear Limited
Central Services,Corporate & Democratic Core,Corporate & Democratic,Supplies & Services,"Printing, Stationery & General Office Expenses",Postage Costs,02/05/2024,511289,12001.1,Latcham Direct Ltd
External Trading Accounts,Economic Development,Premises & Asset Management,Premises related Expenditure,Cleaning and domestic supplies,Contract Cleaning - Non Estates,02/05/2024,511873,12496.92,Kingdom Cleaning Limited
Environmental & Regulatory,Regulatory Services,Housing and Environmental Health ,Supplies & Services,Grants and subscriptions,Capital Grants,16/05/2024,514004,15194.94,A & E Builders
Planning & Development,Community Development,Community and Leisure ,Supplies & Services,Grants & Subscriptions,Grants,02/05/2024,513163,16004.5,Unity
Central Services to the Public,Management & Support Services,IT,Supplies & Services,"Equipment, Furniture & Materials",IT Supp and Serv AMP,02/05/2024,512887,13498.6,Misco Technologies Ltd
Housing Services,Housing Benefits ,Revenues,Supplies & Services,Communications & Computing,Software Maintenance,23/05/2024,513994,13741.96,Nec Software Solutions Uk Limited
Central Services to the Public,Elections,Legal & Democratic,Supplies & Services,"Printing, Stationery & General Office Expenses",Postage Costs,02/05/2024,512902,16598.1,Financial Data Management Plc
Planning & Development,Planning Policy,Plan Pol & Transport,Supplies & Services,Grants & Subscriptions,Grants,02/05/2024,513164,17132,Unity
Planning & Development,Development Control,Planning & Building,Supplies & Services,"Printing, Stationery & General Office Expenses",Written Media,23/05/2024,510839,20580,Haymarket Media Group
Environmental & Regulatory,Regulatory Services,Housing and Environmental Health ,Supplies & Services,Grants and subscriptions,Capital Grants,30/05/2024,515071,20619.16,Kemp Builders (Gosport) Ltd
Central Services to the Public,Management & Support Services,Premises & Asset Management,Third Party Payments,Other Establishments,Private Contractors,23/05/2024,514234,18521.4,Corrigenda Ltd
Cultural & Related,Recreation & Sport,Community and Leisure ,Premises related Expenditure,Repairs Alterations & Maintenance of Buildings,Planned Maintenance - Non Est,23/05/2024,514234,65.24,Corrigenda Ltd
Environmental & Regulatory,Regulatory Services,Housing and Environmental Health ,Supplies & Services,Grants and subscriptions,Capital Grants,02/05/2024,513178,22590.99,Kemp Builders (Gosport) Ltd
Cultural & Related,Recreation & Sport,Community and Leisure ,Premises related Expenditure,Repairs Alterations & Maintenance of Buildings,Estates premises costs - AMP,30/05/2024,515039,24488,Chelmsford Demolition Ltd
Cultural & Related,Culture & Heritage,Estates and Economic Development ,Third Party Payments,Private contractors,Main Contractor Costs,23/05/2024,514524,25455,Land Use Consultants Ltd
"Highways, Roads & Transport",Parking Services,Plan Pol & Transport,Transport Related Costs,Management Fee,Car Park charges,23/05/2024,514337,33890,Asda
Cultural & Related,Regulatory Services,Community and Leisure ,Third Party Payments,Private contractors,Main Contractor Costs,09/05/2024,513558,35166.25,Over Wallop Parish Council
Central Services,Corporate & Democratic Core,Corporate & Democratic,Supplies & Services,Miscellaneous Expenses,External Audit Fees,16/05/2024,513771,30842,Ernst & Young Llp
Environmental & Regulatory,"Cemetery, Cremation and Mortuary Services",Community and Leisure ,Premises related Expenditure,Repairs Alterations & Maintenance of Buildings,Estates premises costs - AMP,09/05/2024,513080,32210.88,Universal Stone Limited
Central Services to the Public,Management & Support Services,Finance,Supplies & Services,Services,Insurance ,30/05/2024,515042,46660.66,Zurich Insurance Company
Central Services to the Public,Management & Support Services,Premises & Asset Management,Supplies & Services,Services,Professional Fees,23/05/2024,513842,39000,Carter Jonas Llp
Central Services to the Public,Management & Support Services,Revenues,Supplies & Services,Communications & Computing,Software Maintenance,09/05/2024,513524,53169.12,Abavus Limited
Central Services to the Public,Management & Support Services,Finance,Supplies & Services,Services,Insurance ,02/05/2024,512819,99396.75,Gallagher
Central Services to the Public,Management & Support Services,Finance,Supplies & Services,Services,Insurance ,02/05/2024,512347,162649.24,Gallagher
Central Services to the Public,Management & Support Services,Environmental,Transport Related Expenditure,Direct Transport Costs,Vehicles and Plant,09/05/2024,513493,209729,Dennis Eagle Ltd
Central Services to the Public,Management & Support Services,Environmental,Transport Related Expenditure,Direct Transport Costs,Vehicles and Plant,09/05/2024,513494,209729,Dennis Eagle Ltd
